bitfinex/quotes_BTCUSD_20241119
["timestamp","ask_amount","ask_price","bid_price","bid_amount"]
[1731995868920,0.14847881,91813.0,91812.0,0.3479932]
[1731995869130,0.14847881,91813.0,91812.0,0.3339932]
[1731995869572,0.15047881,91813.0,91812.0,0.3339932]
[1731995870258,0.14847881,91813.0,91812.0,0.3339932]
[1731995870465,0.14847881,91813.0,91812.0,0.3349932]
[1731995871111,0.14847881,91813.0,91812.0,0.25434091]
[1731995871325,0.14847881,91813.0,91812.0,0.3349932]
[1731995871999,0.1281002,91813.0,91812.0,0.3349932]
[1731995872452,0.1281002,91813.0,91812.0,0.3339932]
[1731995872453,0.14847353,91813.0,91812.0,0.3339932]
[1731995872909,0.14947353,91813.0,91812.0,0.3339932]
[1731995873335,0.0506002,91813.0,91812.0,0.3339932]
[1731995873564,0.0010002,91813.0,91812.0,0.53370804]
[1731995873990,0.0010002,91813.0,91812.0,0.5654359]
[1731995874452,0.0010002,91813.0,91812.0,0.53370804]
[1731995874661,0.0010002,91813.0,91812.0,0.55579342]
[1731995874880,0.0010002,91813.0,91812.0,0.55879342]
[1731995875079,2e-07,91813.0,91812.0,0.55879342]
[1731995875297,2e-07,91813.0,91812.0,0.55979342]
[1731995875511,2e-07,91813.0,91812.0,0.55879342]
[1731995875933,2e-07,91813.0,91812.0,0.57479342]
[1731995876138,2e-07,91813.0,91812.0,0.70329342]
[1731995877665,2e-07,91813.0,91812.0,0.73502919]
[1731995878530,2e-07,91813.0,91812.0,0.70329342]
[1731995878781,2e-07,91813.0,91812.0,0.65609342]
[1731995879007,2e-07,91813.0,91812.0,0.57479342]
[1731995879660,2e-07,91813.0,91812.0,0.81811686]
[1731995879863,2e-07,91813.0,91812.0,0.57479342]
[1731995880538,2e-07,91813.0,91812.0,0.8180749]
[1731995880959,2e-07,91813.0,91812.0,0.57479342]
[1731995897292,2e-07,91813.0,91812.0,0.58479342]
[1731995898554,2e-07,91813.0,91812.0,0.42348884]
[1731995898765,2e-07,91813.0,91812.0,0.58479342]
[1731995902213,2e-07,91813.0,91812.0,0.59866357]
[1731995903067,2e-07,91813.0,91812.0,0.40402734]
[1731995903510,2e-07,91813.0,91812.0,1.10402734]
[1731995904153,2e-07,91813.0,91812.0,1.20402734]
[1731995904794,2e-07,91813.0,91812.0,1.24725473]
[1731995905028,2e-07,91813.0,91812.0,0.54725473]
[1731995906566,2e-07,91813.0,91812.0,0.38595015]
[1731995906784,2e-07,91813.0,91812.0,0.54725473]
[1731995908514,2e-07,91813.0,91812.0,0.74186461]
[1731995908738,2e-07,91813.0,91812.0,0.54725473]
[1731995909597,2e-07,91813.0,91812.0,0.57055646]
[1731995909827,2e-07,91813.0,91812.0,0.45660244]
[1731995910270,2e-07,91813.0,91812.0,0.65120391]
[1731995910469,2e-07,91813.0,91812.0,0.73186098]
[1731995910825,2e-07,91813.0,91812.0,0.53725473]
[1731995911060,0.0824002,91813.0,91812.0,0.37595015]
[1731995911266,2e-07,91813.0,91812.0,0.68321206]
[1731995911712,2e-07,91813.0,91812.0,0.53725473]
[1731995912049,2e-07,91813.0,91812.0,0.56901037]
[1731995919980,2e-07,91813.0,91812.0,0.57072017]
[1731995928416,0.0826002,91813.0,91812.0,0.17285519]
[1731995928659,0.14820451,91813.0,91812.0,0.25350748]
[1731995928878,0.14820451,91813.0,91812.0,0.44848411]
[1731995929114,0.14820451,91813.0,91812.0,0.25050748]
[1731995929328,0.14820451,91813.0,91812.0,0.23750748]
[1731995929534,0.14820451,91813.0,91812.0,0.49770173]
[1731995929966,0.14820451,91813.0,91812.0,0.35150748]
[1731995930177,0.1278002,91813.0,91812.0,0.35150748]
[1731995930385,0.1278002,91813.0,91812.0,0.49467333]
[1731995931256,0.1278002,91813.0,91812.0,0.48067333]
[1731995931456,0.1278002,91813.0,91812.0,0.33450748]
[1731995931682,0.1278002,91813.0,91812.0,0.33550748]
[1731995932866,0.1278002,91813.0,91812.0,0.48067333]
[1731995933081,2e-07,91813.0,91812.0,0.34450748]
[1731995933280,2e-07,91813.0,91812.0,0.52949009]
[1731995933457,2e-07,91813.0,91812.0,0.53949009]
[1731995933848,2e-07,91813.0,91812.0,0.45357003]
[1731995934053,2e-07,91813.0,91812.0,0.53422232]
[1731995934274,2e-07,91813.0,91812.0,0.45357003]
[1731995934871,2e-07,91813.0,91812.0,0.45457003]
[1731995935635,2e-07,91813.0,91812.0,0.45357003]
[1731995935849,2e-07,91813.0,91812.0,0.46157003]
[1731995938782,0.1265002,91813.0,91812.0,0.46157003]
[1731995938954,0.1265002,91813.0,91812.0,0.65628855]
[1731995938955,0.12476857,91813.0,91812.0,0.65628855]
[1731995939121,0.12476857,91813.0,91812.0,0.46157003]
[1731995939316,0.12476857,91813.0,91812.0,0.35250748]
[1731995939524,0.12476857,91813.0,91812.0,0.49855915]
[1731995941267,0.0008544,91820.0,91819.0,0.208909]
[1731995941592,0.0008544,91820.0,91819.0,0.28956129]
[1731995942046,0.0475544,91820.0,91819.0,0.28956129]
[1731995942697,0.1242544,91820.0,91819.0,0.208909]
[1731995942899,0.1272544,91820.0,91819.0,0.208909]
[1731995944664,0.1242544,91820.0,91819.0,0.208909]
[1731995945509,0.1242544,91820.0,91812.0,0.26277119]
[1731995945510,0.1366,91813.0,91812.0,0.0017098]
[1731995945834,0.1266,91813.0,91812.0,0.0017098]
[1731995946612,0.1266,91813.0,91812.0,0.1106278]
[1731995946822,0.1336,91813.0,91812.0,0.1106278]
[1731995947851,0.1366,91813.0,91812.0,0.1106278]
[1731995948467,0.01,91813.0,91812.0,0.2106278]
[1731995949067,0.01,91813.0,91812.0,0.35670498]
[1731995949430,0.01,91813.0,91812.0,0.2106278]
[1731995950056,0.01,91813.0,91812.0,0.31969035]
[1731995950687,0.01,91813.0,91812.0,0.46560718]
[1731995950898,0.01,91813.0,91812.0,0.31969035]
[1731995951644,0.01,91813.0,91812.0,0.2106278]
[1731995954610,0.0561,91813.0,91812.0,0.2106278]
[1731995955277,0.0108549,91813.0,91812.0,0.31969035]
[1731995955494,0.0108549,91813.0,91812.0,0.2106278]
[1731995955873,0.0108549,91813.0,91812.0,0.38858211]
[1731995956288,0.0108549,91813.0,91812.0,0.29128009]
[1731995956443,0.0565549,91813.0,91812.0,0.2106278]
[1731995957079,0.1331549,91813.0,91812.0,0.2106278]
[1731995960086,0.1331549,91813.0,91812.0,0.1106278]
[1731995960963,0.1331549,91813.0,91812.0,0.0017098]
[1731995960964,0.1431549,91813.0,91812.0,0.0017098]
[1731995961539,0.1431549,91813.0,91812.0,0.1106278]
[1731995961745,0.1431549,91813.0,91812.0,0.0017098]
[1731995962541,0.1431549,91813.0,91812.0,0.1106278]
[1731995964661,0.1431549,91813.0,91812.0,0.0017098]
[1731995964870,0.14861561,91833.0,91812.0,0.0017098]
[1731995964871,0.0008541,91841.0,91828.0,0.01]
[1731995965079,0.0105,91882.0,91840.0,0.46116713]
[1731995965276,0.0105,91882.0,91865.0,0.208855]
[1731995965277,0.0005,91882.0,91865.0,0.208855]
[1731995965490,0.0005,91882.0,91865.0,0.218855]
[1731995965693,0.0005,91882.0,91865.0,0.36409879]
[1731995965871,0.0005,91882.0,91865.0,0.49349152]
[1731995966131,0.0005,91882.0,91865.0,0.47717]
[1731995966335,0.0005,91882.0,91865.0,0.34614037]
[1731995966513,0.0005,91882.0,91865.0,0.57043616]
[1731995966682,0.0207546,91866.0,91865.0,0.60548829]
[1731995966883,0.0147546,91866.0,91865.0,0.70237199]
[1731995967083,0.0147546,91866.0,91865.0,0.58248829]
[1731995967296,0.0147546,91866.0,91865.0,0.61048829]
[1731995967297,0.0137546,91866.0,91865.0,0.61048829]
[1731995967690,0.0137546,91866.0,91865.0,0.48320292]
[1731995967898,0.0146095,91866.0,91865.0,0.48320292]
[1731995968101,0.0146095,91866.0,91865.0,0.52726086]
[1731995968515,0.0156095,91866.0,91865.0,0.52326086]
[1731995968912,0.0146095,91866.0,91865.0,0.52726086]
[1731995969115,0.0146095,91866.0,91865.0,0.49926086]
[1731995969355,0.0156095,91866.0,91865.0,0.52326086]
[1731995969499,0.0156095,91866.0,91865.0,0.55126086]
[1731995969868,0.0146095,91866.0,91865.0,0.52726086]
[1731995969977,0.0156095,91866.0,91865.0,0.55126086]
[1731995971687,0.0156095,91866.0,91865.0,0.52326086]
[1731995971978,0.0146095,91866.0,91865.0,0.65454623]
[1731995972219,0.0156095,91866.0,91865.0,0.65054623]
[1731995972380,0.0156095,91866.0,91865.0,0.52326086]
[1731995972585,0.0156095,91866.0,91865.0,0.55126086]
[1731995972904,0.0156095,91866.0,91865.0,0.52326086]
[1731995973212,0.0146095,91866.0,91865.0,0.52726086]
[1731995973414,0.0146095,91866.0,91865.0,0.49926086]
[1731995973638,0.0156095,91866.0,91865.0,0.65054623]
[1731995974017,0.0156095,91866.0,91865.0,0.67267474]
[1731995974418,0.0156095,91866.0,91865.0,0.43632682]
[1731995974840,0.0156095,91866.0,91865.0,0.59161219]
[1731995975405,0.0146095,91866.0,91865.0,0.52138937]
[1731995975616,0.0146095,91866.0,91865.0,0.64867474]
[1731995976034,0.0156095,91866.0,91865.0,0.70067474]
[1731995976452,0.0156095,91866.0,91865.0,0.67267474]
[1731995976662,0.0146095,91866.0,91865.0,0.67667474]
[1731995977054,0.0146095,91866.0,91865.0,0.64867474]
[1731995977267,0.0146095,91866.0,91865.0,0.67667474]
[1731995977482,0.0156095,91866.0,91865.0,0.70067474]
[1731995978851,0.0146095,91866.0,91865.0,0.64867474]
[1731995978984,0.0146095,91866.0,91865.0,0.70067474]
[1731995979212,0.0156095,91866.0,91865.0,0.67267474]
[1731995979581,0.0146095,91866.0,91865.0,0.67667474]
[1731995979781,0.0156095,91866.0,91865.0,0.66867474]
[1731995980173,0.0156095,91866.0,91865.0,0.69667474]
[1731995980399,0.0156095,91866.0,91865.0,0.66867474]
[1731995981041,0.0005,91882.0,91873.0,0.218845]
[1731995981486,0.0005,91882.0,91873.0,0.34613037]
[1731995982128,0.0018548,91874.0,91873.0,0.35213037]
[1731995982703,0.0018548,91874.0,91873.0,0.37413037]
[1731995983112,0.0018548,91874.0,91873.0,0.48319292]
[1731995984585,0.01,91891.0,91873.0,0.48319292]
[1731995984586,0.0008549,91905.0,91882.0,0.1]
[1731995984828,0.0008549,91905.0,91904.0,0.33609437]
[1731995985046,0.0008549,91905.0,91904.0,0.44515692]
[1731995985275,0.0008549,91905.0,91904.0,0.33609437]
[1731995985724,0.0018549,91905.0,91904.0,0.33609437]
[1731995986178,0.0007549,91910.0,91909.0,0.208803]
[1731995992554,0.0016089,91910.0,91909.0,0.208803]
[1731995994887,0.0016089,91910.0,91909.0,0.33608837]
[1731995995010,0.0016089,91910.0,91909.0,0.208803]
[1731995995220,0.0016089,91910.0,91909.0,0.33608837]
[1731995996476,0.0016089,91910.0,91909.0,0.23608837]
[1731995996692,0.0116089,91910.0,91909.0,0.12728537]
[1731995996887,0.0116089,91910.0,91909.0,0.23608837]
[1731995997630,0.0116089,91910.0,91909.0,0.12728537]
[1731995997837,0.0116089,91910.0,91909.0,0.23608837]
[1731995998046,0.0126089,91910.0,91909.0,0.23608837]
[1731995998525,0.0116089,91910.0,91909.0,0.23608837]
[1731995998752,0.0126089,91910.0,91909.0,0.12728537]
[1731995998972,0.08622534,91910.0,91909.0,0.23608837]
[1731995999195,0.08622534,91910.0,91909.0,0.12728537]
[1731995999415,0.08422534,91910.0,91909.0,0.23608837]
[1731995999632,0.09228631,91910.0,91909.0,0.23608837]
[1731995999875,0.27904235,91910.0,91909.0,0.12728537]
[1731996000135,0.35891705,91910.0,91909.0,0.12728537]
[1731996000356,0.33028831,91910.0,91909.0,0.12728537]
[1731996000834,0.33028831,91910.0,91904.0,0.001708]
[1731996000835,0.015,91905.0,91904.0,0.001708]
[1731996001048,0.33687055,91905.0,91904.0,0.001708]
[1731996001263,0.20506255,91905.0,91904.0,0.001708]
[1731996001475,0.23769473,91905.0,91904.0,0.001708]
[1731996001680,0.22545766,91905.0,91904.0,0.001708]
[1731996001892,0.11639511,91905.0,91904.0,0.001708]
[1731996002123,0.11639511,91905.0,91904.0,0.110517]
[1731996002972,0.12339511,91905.0,91904.0,0.111517]
[1731996003192,0.096,91905.0,91904.0,0.110517]
[1731996003641,0.15588645,91905.0,91904.0,0.003708]
[1731996004124,0.16488645,91905.0,91904.0,0.004708]
[1731996004361,0.15488645,91905.0,91904.0,0.004708]
[1731996004581,0.15488645,91905.0,91904.0,0.13099337]
[1731996004582,0.15588645,91905.0,91904.0,0.13099337]
[1731996004786,0.116,91905.0,91904.0,0.13199337]
[1731996005253,0.116,91905.0,91904.0,0.24080237]
[1731996006252,0.16891388,91905.0,91904.0,0.24080237]
[1731996006484,0.08791388,91905.0,91904.0,0.24080237]
[1731996006923,0.035,91905.0,91904.0,0.13199337]
[1731996007163,0.08793377,91905.0,91904.0,0.13199337]
[1731996007377,0.08793377,91905.0,91904.0,0.24080237]
[1731996007846,0.08793377,91905.0,91904.0,0.13199337]
[1731996009673,0.08793377,91905.0,91904.0,0.11199337]
[1731996010165,0.035,91905.0,91904.0,0.11199337]
[1731996011041,0.035,91905.0,91904.0,0.13384974]
[1731996011457,0.05536611,91905.0,91904.0,0.13384974]
[1731996011668,0.08795189,91905.0,91904.0,0.13384974]
[1731996012095,0.08795189,91905.0,91904.0,0.24265874]
[1731996012757,0.07795189,91905.0,91904.0,0.24265874]
[1731996014559,0.07795189,91905.0,91904.0,0.13166537]
[1731996015456,0.07795189,91905.0,91904.0,0.13337337]
[1731996015698,0.07295189,91905.0,91904.0,0.13337337]
[1731996015937,0.07295189,91905.0,91904.0,0.17771532]
[1731996015938,0.04036611,91905.0,91904.0,0.17771532]
[1731996016159,0.02,91905.0,91904.0,0.17771532]
[1731996016603,0.007,91905.0,91904.0,0.17671532]
[1731996016810,0.00766987,91910.0,91909.0,0.108803]
[1731996017266,0.005,91906.0,91905.0,0.217614]
[1731996017525,0.005,91906.0,91905.0,0.108808]
[1731996017733,0.01,91908.0,91904.0,0.83237337]
[1731996017734,0.005,91905.0,91904.0,0.83237337]
[1731996018237,0.02540153,91905.0,91904.0,0.13237337]
[1731996018457,0.00504,91905.0,91904.0,0.13237337]
[1731996018887,0.01100617,91905.0,91904.0,0.13237337]
[1731996019095,0.00504,91905.0,91904.0,0.02356437]
[1731996019337,0.123848,91905.0,91904.0,0.02356437]
[1731996019544,0.14420674,91905.0,91904.0,0.02356437]
[1731996019750,0.1541873,91905.0,91904.0,0.02356437]
[1731996019979,0.15718671,91905.0,91904.0,0.02356437]
[1731996020249,0.42611161,91905.0,91904.0,0.001708]
[1731996020484,0.46451161,91905.0,91904.0,0.001708]
[1731996020755,0.46451161,91905.0,91904.0,0.002708]
[1731996020756,0.13335569,91905.0,91904.0,0.002708]
[1731996020978,0.12635569,91905.0,91904.0,0.001708]
[1731996021833,0.23516369,91905.0,91904.0,0.001708]
[1731996022045,0.17522856,91905.0,91904.0,0.001708]
[1731996022260,0.08142056,91905.0,91904.0,0.003708]
[1731996022685,0.09142056,91905.0,91904.0,0.005708]
[1731996022890,0.08142056,91905.0,91904.0,0.003482]
[1731996023192,0.08142056,91905.0,91904.0,0.112291]
[1731996023193,0.0739489,91905.0,91904.0,0.112291]
[1731996023391,0.02202056,91905.0,91904.0,0.112291]
[1731996023610,0.02202056,91905.0,91904.0,0.114291]
[1731996023611,0.03904,91905.0,91904.0,0.114291]
[1731996024041,0.02804,91905.0,91904.0,0.112291]
[1731996024500,0.02804,91905.0,91904.0,0.113291]
[1731996024501,0.04004,91905.0,91904.0,0.113291]
[1731996024756,0.03804,91905.0,91904.0,0.003482]
[1731996024951,0.03539723,91905.0,91904.0,0.001482]
[1731996025162,0.22854316,91905.0,91904.0,0.001482]
[1731996025380,0.23554316,91905.0,91904.0,0.001482]
[1731996025790,0.33760571,91905.0,91904.0,0.001482]
[1731996025999,0.35460571,91905.0,91904.0,0.002482]
[1731996026658,0.38718148,91905.0,91904.0,0.002482]
[1731996028212,0.33424848,91905.0,91904.0,0.002482]
[1731996028424,0.33424848,91905.0,91904.0,0.111291]
[1731996028425,0.03297793,91905.0,91904.0,0.111291]
[1731996028631,0.005,91897.0,91896.0,0.27327455]
[1731996028849,0.005,91897.0,91896.0,0.16445655]
[1731996029062,0.005,91897.0,91896.0,0.27327455]
[1731996029285,0.005,91897.0,91896.0,0.108818]
[1731996029974,0.005,91899.0,91898.0,0.326447]
[1731996030197,0.005,91897.0,91896.0,0.002]
[1731996030455,0.005,91898.0,91897.0,0.217634]
[1731996030667,0.00596233,91897.0,91896.0,0.194118]
[1731996030883,4e-05,91905.0,91901.0,0.217623]
[1731996031076,0.00504,91905.0,91904.0,0.108809]
[1731996031293,0.02040138,91905.0,91904.0,0.108809]
[1731996031514,0.02540138,91905.0,91904.0,0.108809]
[1731996031786,0.02040138,91905.0,91904.0,0.108809]
[1731996032859,0.02740138,91905.0,91904.0,0.109809]
[1731996033066,0.03940138,91905.0,91904.0,0.109809]
[1731996033510,0.01904,91905.0,91904.0,0.109809]
[1731996034134,0.01204,91905.0,91904.0,0.109809]
[1731996034344,4e-05,91905.0,91904.0,0.108809]
[1731996034783,0.00504,91905.0,91904.0,0.108809]
[1731996034989,0.01004,91905.0,91904.0,0.108809]
[1731996035426,0.00504,91905.0,91904.0,0.108809]
[1731996035678,0.02540119,91905.0,91904.0,0.108809]
[1731996035921,0.03240119,91905.0,91904.0,0.108809]
[1731996036343,0.04540119,91905.0,91904.0,0.109809]
[1731996036987,0.04540119,91905.0,91904.0,0.001]
[1731996037207,0.05136815,91905.0,91904.0,0.001]
[1731996038102,0.3620387,91905.0,91904.0,0.001]
[1731996038554,0.4438186,91905.0,91904.0,0.0027082]
[1731996038986,0.4446727,91905.0,91904.0,0.0027082]
[1731996039421,0.4316727,91905.0,91904.0,0.0017082]
[1731996039635,0.4546727,91905.0,91904.0,0.0037082]
[1731996039879,0.4246727,91905.0,91904.0,0.0017082]
[1731996040124,0.5519503,91905.0,91904.0,0.0017082]
[1731996040343,0.67260749,91905.0,91904.0,0.0037082]
[1731996040517,0.5519503,91905.0,91904.0,0.0017082]
[1731996040729,0.5669503,91905.0,91904.0,0.0027082]
[1731996040933,0.5899503,91905.0,91904.0,0.0047082]
[1731996041374,0.67260749,91905.0,91904.0,0.0037082]
[1731996041591,0.67260749,91905.0,91904.0,0.0057082]
[1731996041788,0.69660749,91905.0,91904.0,0.0057082]
[1731996042004,0.69660749,91905.0,91866.0,0.26158059]
[1731996042005,0.118848,91871.0,91866.0,0.26158059]
[1731996042209,0.01,91871.0,91867.0,0.108852]
[1731996042460,0.01589642,91870.0,91866.0,0.16445655]
[1731996042879,0.01589642,91870.0,91851.0,0.217742]
[1731996042880,0.01589642,91870.0,91865.0,0.108854]
[1731996043084,0.12474542,91870.0,91864.0,0.108856]
[1731996043290,0.01589642,91870.0,91867.0,0.004]
[1731996043495,0.01589642,91870.0,91867.0,0.012]
[1731996043728,0.01589642,91870.0,91865.0,0.108854]
[1731996043977,0.01589642,91870.0,91863.0,0.208856]
[1731996044193,0.108851,91869.0,91861.0,0.1]
[1731996044396,0.02589642,91870.0,91857.0,0.26721882]
[1731996044397,0.01,91863.0,91862.0,0.108858]
[1731996044606,0.01,91863.0,91858.0,0.108862]
[1731996044809,0.01,91863.0,91862.0,0.02192931]
[1731996045244,0.0158947,91863.0,91862.0,0.02192931]
[1731996045445,0.01,91863.0,91862.0,0.02192931]
[1731996045683,0.0158947,91863.0,91862.0,0.02192931]
[1731996046316,0.0178947,91863.0,91862.0,0.02192931]
[1731996046730,0.012,91863.0,91862.0,0.02192931]
[1731996046969,0.012,91863.0,91850.0,0.005]
[1731996046970,0.005,91853.0,91849.0,0.0017092]
[1731996047168,0.005,91853.0,91852.0,0.27332655]
[1731996047397,0.005,91853.0,91852.0,0.10887]
[1731996047820,0.005,91853.0,91850.0,0.217746]
[1731996048044,0.005,91853.0,91851.0,0.217743]
[1731996048253,0.005,91853.0,91852.0,0.10887]
[1731996048463,0.1268,91863.0,91859.0,0.108861]
[1731996048464,0.008,91863.0,91859.0,0.108861]
[1731996048738,0.001,91863.0,91862.0,0.108858]
[1731996048943,0.005,91867.0,91862.0,0.108858]
[1731996049178,0.005,91867.0,91859.0,0.217724]
[1731996049414,0.005,91861.0,91859.0,0.108861]
[1731996049628,0.005,91862.0,91859.0,0.108861]
[1731996049857,0.108853,91867.0,91854.0,0.217736]
[1731996049858,0.004,91863.0,91861.0,0.108859]
[1731996050065,0.004,91863.0,91862.0,0.113858]
[1731996050267,0.005,91863.0,91862.0,0.113858]
[1731996050470,0.01,91863.0,91862.0,0.113858]
[1731996050682,0.01,91863.0,91862.0,0.108858]
[1731996050683,0.005,91863.0,91862.0,0.108858]
[1731996050888,0.005,91865.0,91863.0,0.108857]
[1731996051108,0.005,91864.0,91863.0,0.108857]
[1731996051308,0.005,91864.0,91860.0,0.217722]
[1731996051309,0.005,91861.0,91860.0,0.326582]
[1731996051522,0.005,91861.0,91860.0,0.10886]
[1731996052132,0.015,91860.0,91859.0,0.006]
[1731996052337,0.015,91860.0,91852.0,0.001709]
[1731996052338,0.005,91858.0,91852.0,0.219448]
[1731996052771,0.005,91858.0,91854.0,0.108868]
[1731996052978,0.005,91859.0,91854.0,0.108868]
[1731996053157,0.005,91858.0,91854.0,0.108868]
[1731996053328,0.005,91859.0,91854.0,0.108868]
[1731996053536,0.005,91858.0,91854.0,0.108868]
[1731996053741,0.008,91858.0,91854.0,0.108868]
[1731996053952,0.005,91858.0,91852.0,0.219448]
[1731996054162,0.005,91858.0,91857.0,0.108864]
[1731996054364,0.005,91858.0,91852.0,0.001709]
[1731996054537,0.008,91858.0,91852.0,0.001709]
[1731996054723,0.008,91858.0,91855.0,0.108866]
[1731996054947,0.008,91858.0,91852.0,0.001709]
[1731996055148,0.008,91858.0,91857.0,0.108864]
[1731996055787,0.005,91858.0,91857.0,0.108864]
[1731996055989,0.008,91858.0,91857.0,0.108864]
[1731996056222,0.008,91858.0,91855.0,0.108866]
[1731996056419,0.006,91858.0,91857.0,0.006]
[1731996056624,0.008,91858.0,91857.0,0.114864]
[1731996057197,0.005,91858.0,91857.0,0.108864]
[1731996057409,0.008,91858.0,91857.0,0.114864]
[1731996057661,0.006,91858.0,91857.0,0.114864]
[1731996058739,0.005,91858.0,91857.0,0.108864]
[1731996059187,0.008,91858.0,91857.0,0.114864]
[1731996059394,0.006,91858.0,91857.0,0.114864]
[1731996059599,0.007,91858.0,91857.0,0.108864]
[1731996059824,0.006,91858.0,91857.0,0.114864]
[1731996060321,0.008,91858.0,91857.0,0.108864]
[1731996060478,0.005,91858.0,91857.0,0.108864]
[1731996060705,0.006,91858.0,91857.0,0.114864]
[1731996060918,0.008,91858.0,91857.0,0.114864]
[1731996061386,0.008,91858.0,91857.0,0.006]
[1731996061607,0.008,91858.0,91857.0,0.114864]
[1731996061823,0.007,91858.0,91857.0,0.108864]
[1731996062242,0.006,91858.0,91857.0,0.114864]
[1731996062452,0.008,91858.0,91857.0,0.114864]
[1731996062717,0.008,91858.0,91855.0,0.108866]
[1731996062718,0.007,91858.0,91855.0,0.108866]
[1731996062890,0.006,91858.0,91857.0,0.006]
[1731996063327,0.007,91858.0,91854.0,0.26116175]
[1731996063564,0.005,91858.0,91856.0,0.108865]
[1731996063768,0.008,91858.0,91857.0,0.001]
[1731996063965,0.016,91858.0,91857.0,0.001]
[1731996064482,0.0639,91858.0,91857.0,0.001]
[1731996064703,0.50680075,91858.0,91857.0,0.001]
[1731996065183,0.52709593,91858.0,91857.0,0.001]
[1731996065337,0.51909593,91858.0,91857.0,0.001]
[1731996065551,0.52709593,91858.0,91857.0,0.001]
[1731996066205,0.52709593,91858.0,91833.0,0.1]
[1731996066206,0.01,91829.0,91828.0,0.02143152]
[1731996066448,0.1379,91829.0,91828.0,0.02143152]
[1731996066679,0.14344214,91829.0,91814.0,0.005]
[1731996066935,0.14344214,91829.0,91817.0,0.16445655]
[1731996067139,0.01,91827.0,91821.0,0.02168181]
[1731996067389,0.01,91825.0,91816.0,0.108912]
[1731996067612,0.01,91825.0,91816.0,0.1]
[1731996068070,0.00554214,91824.0,91817.0,0.108912]
[1731996069159,0.00554214,91824.0,91816.0,0.1]
[1731996069355,0.00554214,91824.0,91815.0,0.1]
[1731996069603,0.00554214,91824.0,91816.0,0.1]
[1731996069787,0.00954214,91824.0,91816.0,0.1]
[1731996070009,0.01054214,91824.0,91817.0,0.001]
[1731996070218,0.00654214,91824.0,91817.0,0.001]
[1731996070456,0.00554214,91824.0,91813.0,0.02209002]
[1731996070667,0.005,91821.0,91813.0,0.02209002]
[1731996070908,0.02031527,91820.0,91816.0,0.001]
[1731996071113,0.02031527,91819.0,91816.0,0.001]
[1731996071317,0.02031527,91818.0,91816.0,0.001]
[1731996071567,0.02031527,91817.0,91816.0,0.001]
[1731996071776,0.02565137,91817.0,91816.0,0.001]
[1731996072001,0.03565137,91817.0,91816.0,0.001]
[1731996072208,0.03565137,91817.0,91813.0,0.02209002]
[1731996072425,0.0053361,91817.0,91813.0,0.02609002]
[1731996072838,0.0053361,91817.0,91813.0,0.02209002]
[1731996073258,0.1272491,91817.0,91816.0,0.003]
[1731996073466,0.121913,91817.0,91816.0,0.003]
[1731996073673,0.01,91815.0,91813.0,0.02209002]
[1731996073891,0.118915,91815.0,91813.0,0.02609002]
[1731996074351,0.0053361,91814.0,91813.0,0.02609002]
[1731996075454,0.0053361,91814.0,91779.0,0.01]
[1731996075455,0.0053361,91814.0,91807.0,0.108924]
[1731996075667,0.0053361,91814.0,91811.0,0.108919]
[1731996075869,0.0053361,91814.0,91805.0,0.1]
[1731996076084,0.108917,91813.0,91806.0,0.108924]
[1731996076308,0.108917,91813.0,91805.0,0.1]
[1731996076309,0.1142531,91813.0,91805.0,0.1]
[1731996076522,0.1142531,91813.0,91807.0,0.108924]
[1731996076733,0.0053361,91813.0,91807.0,0.115924]
[1731996076941,0.1142531,91813.0,91807.0,0.115923]
[1731996077596,0.0053361,91813.0,91807.0,0.007]
[1731996077806,0.1142531,91813.0,91807.0,0.115923]
[1731996078019,0.1142531,91813.0,91807.0,0.108923]
[1731996078230,0.1142531,91813.0,91805.0,0.1]
[1731996078463,0.0073361,91813.0,91808.0,0.108922]
[1731996078679,0.0103361,91813.0,91808.0,0.108922]
[1731996078893,0.0083361,91813.0,91809.0,0.108921]
[1731996079099,0.111917,91813.0,91807.0,0.13050633]
[1731996079346,0.35387855,91808.0,91807.0,0.02458233]
[1731996079559,0.118922,91808.0,91807.0,0.02458233]
[1731996079769,0.118922,91808.0,91807.0,0.02158233]
[1731996079770,0.01,91808.0,91807.0,0.02158233]
[1731996079979,0.00528763,91808.0,91807.0,0.13050633]
[1731996080445,0.01,91808.0,91807.0,0.13050633]
[1731996080649,0.01,91808.0,91807.0,0.02158233]
[1731996080873,0.01,91808.0,91807.0,0.13050633]
[1731996081085,0.01,91808.0,91807.0,0.108924]
[1731996081294,0.013,91808.0,91807.0,0.108924]
[1731996081501,0.02028763,91808.0,91807.0,0.111924]
[1731996081716,0.015,91808.0,91807.0,0.111924]
[1731996081938,0.0629,91808.0,91807.0,0.003]
[1731996082181,0.4868575,91808.0,91807.0,0.003]
[1731996082431,0.49214513,91808.0,91807.0,0.003]
[1731996082646,0.52458351,91808.0,91807.0,0.003]
[1731996082869,0.6335378,91808.0,91807.0,0.003]
[1731996083114,0.01,91789.0,91788.0,0.04509916]
[1731996083313,0.01,91782.0,91781.0,0.1106636]
[1731996083751,0.01,91782.0,91781.0,0.0017096]
[1731996084203,0.01519461,91782.0,91781.0,0.0017096]
[1731996085090,0.01819461,91782.0,91781.0,0.0027096]
[1731996085333,0.13714761,91782.0,91781.0,0.0027096]
[1731996085581,0.26647274,91782.0,91781.0,0.0027096]
[1731996086751,0.26645727,91782.0,91781.0,0.0027096]
[1731996087195,0.26445727,91782.0,91781.0,0.0017096]
[1731996087417,0.26545727,91782.0,91781.0,0.0017096]
[1731996087644,0.26445727,91782.0,91781.0,0.0027096]
[1731996088104,0.28245727,91782.0,91781.0,0.0017096]
[1731996088323,0.32485265,91782.0,91781.0,0.0017096]
[1731996088539,0.29245727,91782.0,91781.0,0.0017096]
[1731996088767,0.26345727,91782.0,91781.0,0.0017096]
[1731996089003,0.28245727,91782.0,91781.0,0.0017096]
[1731996089232,0.41635727,91782.0,91781.0,0.0017096]
[1731996089498,0.30729472,91782.0,91781.0,0.0017096]
[1731996090378,0.25804761,91782.0,91781.0,0.0017096]
[1731996090599,0.29328764,91782.0,91781.0,0.0017096]
[1731996090807,0.27428764,91782.0,91781.0,0.0017096]